Cogmind - Beta 12 @@@ ROGUE MODE // 2023.04.06 @ 00:09:10 Player: Zellbot Result: Destroyed by G-47 Trooper with Particle Gun Performance ------------- Evolutions (2) 1000 Regions Visited (7) 1400 Robots Destroyed (72) 360 Value Destroyed (2068) 2068 Prototype IDs (2) 40 Alien Tech Used (0) 0 Bonus (0) 0 TOTAL SCORE: 4868 Bonus ------- None Cogmind --------- Core Integrity 0/550 Matter 88/300 Energy 57/100 System Corruption 0% Temperature Cool (36) Movement Core (350) Ox6 Location -8/Materials Parts ------- > --- POWER (1) -------- (None) > --- PROPULSION (3) --- (None) > --- UTILITY (3) ------ Large Storage Unit > --- WEAPON (4) ------- (None) > --- INVENTORY (15) --- Heavy Ion Engine Light Treads Light Treads Light Treads Armored Wheel Cooling System High-capacity Matter Pod (200) Targeting Computer Recoil Stabilizer Improved Field Recycling Unit (0) Peak State ------------ > --- POWER ------------ Improved Ion Engine > --- PROPULSION ------- Light Treads Light Treads Advanced Treads > --- UTILITY ---------- Large Storage Unit Improved Targeting Computer Hardened Medium Armor Plating > --- WEAPON ----------- Improved Assault Rifle Improved Assault Rifle Improved Assault Rifle Assault Cannon > --- INVENTORY -------- Heavy Ion Engine Light Treads Light Treads Light Treads Armored Wheel Cooling System High-capacity Matter Pod Targeting Computer Recoil Stabilizer Light Armor Plating Improved Field Recycling Unit Heavy Assault Rifle Heavy Assault Rifle Assault Cannon Assault Cannon [Rating: 28] Favorites ----------- Power Ion Engine Engine Ion Engine Propulsion Light Treads Treads Light Treads Wheel Armored Wheel Hover Unit Improved Hover Unit Utility Large Storage Unit Storage Large Storage Unit Processor Improved Targeting Computer Protection Light Armor Plating Weapon Improved Assault Rifle Energy Gun Small Laser Ballistic Gun Improved Assault Rifle Ballistic Cannon Light Cannon Build | -11 -10 -10 -9 -9 -9 -8 -8 ------- Run | Jun Mat Min Mat Min Exi Min Mat Slots Evolved 4 | . . . 2 . . . 2 Power . | . . . . . . . . Propulsion 1 | . . . . . . . 1 Utility 1 | . . . . . . . 1 Weapon 2 | . . . 2 . . . . Parts Attached 53 | 6 5 . 18 2 . . 22 Power 8 | 1 . . 5 . . . 2 Engine 8 | 1 . . 5 . . . 2 Core . | . . . . . . . . Reactor . | . . . . . . . . Propulsion 17 | 2 . . 4 2 . . 9 Treads 12 | 2 . . 4 2 . . 4 Leg . | . . . . . . . . Wheel 1 | . . . . . . . 1 Hover 4 | . . . . . . . 4 Flight . | . . . . . . . . Utility 10 | 1 3 . 1 . . . 5 Device . | . . . . . . . . Storage 3 | 1 2 . . . . . . Processor 1 | . . . . . . . 1 Hackware . | . . . . . . . . Protection 6 | . 1 . 1 . . . 4 Artifact . | . . . . . . . . Weapon 18 | 2 2 . 8 . . . 6 Energy Gun 1 | 1 . . . . . . . Energy Cannon . | . . . . . . . . Ballistic Gun 11 | 1 1 . 6 . . . 3 Ballistic Cannon 6 | . 1 . 2 . . . 3 Launcher . | . . . . . . . . Special Weapon . | . . . . . . . . Impact Weapon . | . . . . . . . . Slashing Weapon . | . . . . . . . . Piercing Weapon . | . . . . . . . . Special Melee Weapon . | . . . . . . . . Unidentified Prototypes 2 | . . . 2 . . . . Parts Lost 20 | . 1 . 1 . . . 18 Power 1 | . . . . . . . 1 Propulsion 7 | . . . . . . . 7 Utility 4 | . . . 1 . . . 3 Weapon 8 | . 1 . . . . . 7 Highest Loss Streak 18 | . 1 . 1 . . . 18 To Critical Strikes . | . . . . . . . . Average Slot Usage (%) 96 | . 92 100 97 100 100 100 92 Engine 11 | . 14 14 10 11 11 11 7 Treads 23 | . 28 28 21 22 22 22 24 Storage 11 | . 14 14 11 11 11 11 9 Protection 9 | . 6 14 9 11 11 11 8 Ballistic Gun 30 | . 14 14 33 44 44 44 24 Ballistic Cannon 7 | . 11 14 10 . . . 8 Naked Turns . | . . . . . . . . Heaviest Build 49 | 13 33 33 42 40 40 40 49 Greatest Support 62 | 40 40 40 40 40 40 40 62 Greatest Overweight (x) 2 | 2 . . 1 . . . 2 Average Overweight (x) . | . . . . . . . . Largest Inventory Capacity 15 | 8 15 15 15 15 15 15 15 Average Capacity 14 | 7 12 15 15 15 15 15 15 Most Carried 15 | 4 11 14 15 15 15 15 15 Average Carried 12 | 2 7 12 14 14 15 15 14 Final Capacity 15 | 8 15 15 15 15 15 15 15 Final Carried 15 | 4 11 14 15 15 15 15 10 Class Distribution -------------------- 43% | Mutant 43% | Tank 7% | Gunner 6% | Scavenger-Gunner Dominant Class ---------------- Mutant | -10/Materials Mutant | -10/Mines Tank | -9/Materials Tank | -9/Mines Mutant | -9/Exiles Tank | -8/Mines Scavenger-Gunner | -8/Materials Resources | -11 -10 -10 -9 -9 -9 -8 -8 ----------- Run | Jun Mat Min Mat Min Exi Min Mat Matter Collected 2259 | 133 355 159 934 104 . 120 454 Remotely . | . . . . . . . . Salvage Created 2429 | . 322 123 967 151 . 258 608 Parts 159 | . 23 5 63 13 . 16 39 Haulers Intercepted 3 | . 2 . 1 . . . . Recyclers Shooed . | . . . . . . . . Parts Field Recycled . | . . . . . . . . Retrieved Matter . | . . . . . . . . Parts Self-Destructed . | . . . . . . . . Prevented . | . . . . . . . . Kills | -11 -10 -10 -9 -9 -9 -8 -8 ------- Run | Jun Mat Min Mat Min Exi Min Mat Combat Hostiles Destroyed 53 | . 8 4 19 5 . 7 10 Guns 35 | . 7 . 11 5 . 7 5 Cannons 18 | . 1 4 8 . . . 5 Classes Destroyed 11 | . 5 . 4 . . 1 1 Worker 5 | . 1 . 3 . . . 1 Hauler 3 | . 2 . 1 . . . . Recycler 1 | . . . . . . 1 . Operator 1 | . . . 1 . . . . Watcher 9 | . 2 . 4 . . . 3 Swarmer 13 | . 6 . . 3 . 4 . Grunt 23 | . 2 4 9 . . 2 6 Brawler 2 | . . . 1 . . . 1 Duelist 2 | . . . 1 . . 1 . Sentry 12 | . . . 8 2 . . 2 Specialist 1 | . . . . . . . 1 Best Kill Streak 6 | . 4 2 6 3 . 4 3 Combat Bots Only 4 | . 3 2 3 3 . 4 3 Max Kills in Single Turn 2 | . 1 1 2 1 . 2 1 Gunslinging 1 | . . . . . . 1 . Exploded . | . . . . . . . . Melee . | . . . . . . . . Uniques/NPCs Destroyed . | . . . . . . . . Combat | -11 -10 -10 -9 -9 -9 -8 -8 -------- Run | Jun Mat Min Mat Min Exi Min Mat Damage Taken 4289 | . 375 232 761 115 . 230 2576 Core 757 | . 68 32 42 8 . 43 564 Absorbed by Shields . | . . . . . . . . Regen/Repaired (Parts) 352 | . . . 352 . . . . Core Remaining (%) 78 | 100 . 60 . . . 76 . Volleys Fired 161 | . 33 16 48 7 . 10 47 Largest 4 | . 2 2 4 4 . 4 4 Hottest 155 | . 60 55 113 92 . 92 155 Shots Fired 510 | . 66 32 192 28 . 40 152 Gun 363 | . 42 16 134 28 . 40 103 Cannon 147 | . 24 16 58 . . . 49 Launcher . | . . . . . . . . Special . | . . . . . . . . Kinetic 501 | . 57 32 192 28 . 40 152 Thermal 9 | . 9 . . . . . . Explosive . | . . . . . . . . Electromagnetic . | . . . . . . . . Robot Hit Streak 14 | . 7 5 13 10 . 11 14 Robot Miss Streak 6 | . 3 3 4 4 . 2 6 Penetration Max . | . . . . . . . . Secondary Targets 4 | . . . . . . 4 . Max Gunslinging Chain 2 | . . . . . . 2 . Shots Hit Robots 306 | . 38 19 110 14 . 25 100 Core Hits 119 | . 17 7 43 7 . 13 32 Critical Kills . | . . . . . . . . Critical Parts Destroyed . | . . . . . . . . Critical Strikes 5 | . . 1 3 . . . 1 Blast 5 | . . 1 3 . . . 1 Melee Attacks . | . . . . . . . . Impact . | . . . . . . . . Slashing . | . . . . . . . . Piercing . | . . . . . . . . Sneak Attacks . | . . . . . . . . Combat Hostiles . | . . . . . . . . Follow-up Attacks . | . . . . . . . . Damage Inflicted 5384 | . 547 334 1950 213 . 422 1918 Guns 3468 | . 377 108 1249 213 . 422 1099 Cannons 1896 | . 170 226 701 . . . 799 Explosions . | . . . . . . . . Melee . | . . . . . . . . Ramming 20 | . . . . . . . 20 Kinetic 5275 | . 458 334 1950 213 . 422 1898 Thermal 89 | . 89 . . . . . . Explosive . | . . . . . . . . Electromagnetic . | . . . . . . . . Impact . | . . . . . . . . Slashing . | . . . . . . . . Piercing . | . . . . . . . . Highest Corruption . | . . . . . . . . Average Corruption . | . . . . . . . . Corruption Purged . | . . . . . . . . Corruption Blocked . | . . . . . . . . Overload Shots . | . . . . . . . . Overflow Damage 33 | . 2 . 24 . . . 7 Projectiles 33 | . 2 . 24 . . . 7 Explosions . | . . . . . . . . Melee . | . . . . . . . . Knockbacks 23 | . 5 4 9 . . . 5 Impact . | . . . . . . . . Kinetic 20 | . 4 4 8 . . . 4 Secondary 3 | . 1 . 1 . . . 1 Self-Inflicted Damage 8 | . . . . . . . 8 Shots . | . . . . . . . . Rammed 7 | . . . . . . . 7 Targets Rammed 7 | . . . . . . . 7 Kicked . | . . . . . . . . Crushed . | . . . . . . . . Highest Temperature 407 | . 123 126 393 88 . 276 407 Average Temperature 99 | . 35 58 106 39 . 126 124 Received Heat Transfer 1893 | . 123 129 345 18 . 135 1143 Effects 4 | . . . 3 . . . 1 Shutdowns 2 | . . . 1 . . . 1 Energy Bleed 2 | . . . 2 . . . . Siege Activations . | . . . . . . . . Robots Corrupted . | . . . . . . . . Combat Hostiles . | . . . . . . . . Parts Fried . | . . . . . . . . Impact Corruptions . | . . . . . . . . Robots Melted . | . . . . . . . . Combat Hostiles . | . . . . . . . . Parts Melted . | . . . . . . . . Heat Transferred 200 | . 200 . . . . . . Parts Sabotaged . | . . . . . . . . Parts Stolen . | . . . . . . . . Parts Stripped . | . . . . . . . . Power Chain Reactions . | . . . . . . . . Missiles Intercepted . | . . . . . . . . Alert | -11 -10 -10 -9 -9 -9 -8 -8 ------- Run | Jun Mat Min Mat Min Exi Min Mat Peak Influence 350 | . 176 129 269 188 . 180 350 Initial 70 | . . 14 50 62 . . 70 Average 111 | . 57 61 144 50 . 137 225 Maximum Alert Level 1 | . . . 1 . . . 1 Low Security (%) 84 | 100 100 100 77 100 . 100 48 Level 1 15 | . . . 22 . . . 51 Level 2 . | . . . . . . . . Level 3 . | . . . . . . . . Level 4 . | . . . . . . . . Level 5 . | . . . . . . . . High Security . | . . . . . . . . Max Security . | . . . . . . . . Squads Dispatched 8 | . 1 . 1 . . . 6 Investigation 1 | . 1 . . . . . . Extermination . | . . . . . . . . Reinforcement 5 | . . . 1 . . . 4 Assault . | . . . . . . . . Garrison 2 | . . . . . . . 2 Intercept . | . . . . . . . . Searches Triggered . | . . . . . . . . Construction Impeded . | . . . . . . . . Haulers Reinforced . | . . . . . . . . Active Scanning Responses . | . . . . . . . . Cargo Convoy Interrupts . | . . . . . . . . Stealth | -11 -10 -10 -9 -9 -9 -8 -8 --------- Run | Jun Mat Min Mat Min Exi Min Mat Distress Signals 5 | . 1 . 4 . . . . Communications Jammed . | . . . . . . . . Distress Signals . | . . . . . . . . Times Spotted 88 | . 18 4 27 5 . 7 27 Peak Tracking Total 7 | . 4 2 5 3 . 4 7 Tactical Retreats 4 | . 2 . . . . . 2 Traps | -11 -10 -10 -9 -9 -9 -8 -8 ------- Run | Jun Mat Min Mat Min Exi Min Mat Traps Triggered 2 | . 2 . . . . . . Indirectly . | . . . . . . . . Trap Hack Attempts . | . . . . . . . . Triggered . | . . . . . . . . Disarmed . | . . . . . . . . Reprogrammed . | . . . . . . . . Reused . | . . . . . . . . Traps Extracted . | . . . . . . . . Installed . | . . . . . . . . Triggered . | . . . . . . . . Machines | -11 -10 -10 -9 -9 -9 -8 -8 ---------- Run | Jun Mat Min Mat Min Exi Min Mat Machines Disabled 4 | . 1 . 1 . . 1 1 Max in Single Turn 1 | . 1 . 1 . . 1 1 Machines Repaired . | . . . . . . . . Machines Sabotaged . | . . . . . . . . Overloaded Fab Kills . | . . . . . . . . Hacking | -11 -10 -10 -9 -9 -9 -8 -8 --------- Run | Jun Mat Min Mat Min Exi Min Mat Machines Accessed 5 | . . . 1 . 4 . . Terminals . | . . . . . . . . Fabricators . | . . . . . . . . Repair Stations 1 | . . . 1 . . . . Recycling Units . | . . . . . . . . Scanalyzers . | . . . . . . . . Garrison Access . | . . . . . . . . Total Hacks 14 | . . . 10 . 4 . . Successful 12 | . . . 8 . 4 . . Failed 2 | . . . 2 . . . . Catastrophic . | . . . . . . . . Database Lockouts . | . . . . . . . . Manual . | . . . . . . . . Terminals . | . . . . . . . . Fabricators . | . . . . . . . . Repair Stations 10 | . . . 10 . . . . Recycling Units . | . . . . . . . . Scanalyzers . | . . . . . . . . Garrison Access . | . . . . . . . . Terminal Hacks 4 | . . . . . 4 . . Record 4 | . . . . . 4 . . Fabricator Hacks . | . . . . . . . . Repair Station Hacks 8 | . . . 8 . . . . Scan Component 4 | . . . 4 . . . . Repair 4 | . . . 4 . . . . Recycling Unit Hacks . | . . . . . . . . Scanalyzer . | . . . . . . . . Garrison Access Hacks . | . . . . . . . . Unauthorized Hacks . | . . . . . . . . Terminals . | . . . . . . . . Fabricators . | . . . . . . . . Repair Stations . | . . . . . . . . Recycling Units . | . . . . . . . . Scanalyzers . | . . . . . . . . Garrison Access . | . . . . . . . . Data Cores Recovered 1 | . . . 1 . . . . Used . | . . . . . . . . Hacking Detections 1 | . . . 1 . . . . Full Trace Events 1 | . . . 1 . . . . Feedback Events . | . . . . . . . . Feedback Blocked . | . . . . . . . . Robot Schematics Acquired . | . . . . . . . . Robots Built . | . . . . . . . . Authchips . | . . . . . . . . Time . | . . . . . . . . Total Robot Build Rating . | . . . . . . . . Part Schematics Acquired . | . . . . . . . . Parts Built . | . . . . . . . . Authchips . | . . . . . . . . Time . | . . . . . . . . Total Part Build Rating . | . . . . . . . . Parts Repaired 4 | . . . 4 . . . . Time 104 | . . . 104 . . . . Parts Recycled . | . . . . . . . . Recycled Matter . | . . . . . . . . Retrieved Matter . | . . . . . . . . Retrieved Components . | . . . . . . . . Parts Scanalyzed . | . . . . . . . . Part Schematics Acquired . | . . . . . . . . Parts Damaged . | . . . . . . . . Bothacking | -11 -10 -10 -9 -9 -9 -8 -8 ------------ Run | Jun Mat Min Mat Min Exi Min Mat Used RIF Installer . | . . . . . . . . Robots Hacked . | . . . . . . . . Non-combat . | . . . . . . . . Combat . | . . . . . . . . Robot Hacks Applied . | . . . . . . . . Relay Couplers Released . | . . . . . . . . Fabnet Peak Effective % . | . . . . . . . . Robots Rewired . | . . . . . . . . Allies Hacked . | . . . . . . . . Hacks Repelled . | . . . . . . . . Allies | -11 -10 -10 -9 -9 -9 -8 -8 -------- Run | Jun Mat Min Mat Min Exi Min Mat Total Allies . | . . . . . . . . Largest Group . | . . . . . . . . Highest-Rated Group . | . . . . . . . . Highest-Rated Ally . | . . . . . . . . Total Orders . | . . . . . . . . Ally Attacks . | . . . . . . . . Total Damage . | . . . . . . . . Kills . | . . . . . . . . Allies Corrupted . | . . . . . . . . Allies Melted . | . . . . . . . . Intel | -11 -10 -10 -9 -9 -9 -8 -8 ------- Run | Jun Mat Min Mat Min Exi Min Mat Robot Analysis Total . | . . . . . . . . Derelict Logs Recovered 1 | . . . . 1 . . . Drone Launches . | . . . . . . . . Drone Recoveries . | . . . . . . . . Exploration | -11 -10 -10 -9 -9 -9 -8 -8 ------------- Run | Jun Mat Min Mat Min Exi Min Mat Turns Passed 5646 | 85 1116 315 1677 751 925 113 664 Spaces Moved 2866 | 47 603 159 703 450 579 46 279 Core 5 | 5 . . . . . . . Treads 2847 | 42 603 159 703 450 579 46 265 Legs . | . . . . . . . . Wheels 7 | . . . . . . . 7 Hover 7 | . . . . . . . 7 Flight . | . . . . . . . . Fastest Speed 50 | 50 160 160 160 160 160 160 52 Average Speed 166 | 154 160 160 187 160 160 160 154 Slowest Speed 240 | 160 160 160 240 160 160 160 225 Overloaded Moves . | . . . . . . . . Propulsion Burnouts . | . . . . . . . . Robots Hopped . | . . . . . . . . Cave-ins Triggered . | . . . . . . . . Exploration Rate (%) 53 | 5 94 42 62 88 89 20 25 Regions Visited 7 Branch Regions 4 Pre-discovered Areas 1 | . . 1 . . . . . Known Exits Taken . | . . . . . . . . Unknown Exits Taken 7 | 1 1 1 1 1 1 1 . Scrap Searched 2 | . . . . 1 . 1 . Spaces Dug 1 | . . . . . . . 1 Terrain Destroyed 6 | . . . 1 . . . 5 Melee . | . . . . . . . . Projectile 6 | . . . 1 . . . 5 AOE . | . . . . . . . . Terrain Rammed . | . . . . . . . . Walls Destroyed . | . . . . . . . . Machines Disabled . | . . . . . . . . Actions | -11 -10 -10 -9 -9 -9 -8 -8 --------- Run | Jun Mat Min Mat Min Exi Min Mat Total 3397 | 56 688 188 952 466 578 61 408 Wait 242 | . 37 11 148 . . 6 40 Move 2859 | 46 602 158 702 449 578 45 279 Hop . | . . . . . . . . Pick Up 36 | 4 8 3 15 3 . . 3 Fast Attach 25 | 6 4 . 10 . . . 5 Attach 13 | . 1 . 3 . . . 9 Detach 2 | . . . . . . . 2 Swap 15 | . . . 5 2 . . 8 Drop 37 | . 3 . 21 5 . . 8 Fire 161 | . 33 16 48 7 . 10 47 Melee . | . . . . . . . . Ram 6 | . . . . . . . 6 Kick . | . . . . . . . . Crush 1 | . . . . . . . 1 Escape Stasis . | . . . . . . . . Rewire . | . . . . . . . . Trap . | . . . . . . . . Miscellaneous . | . . . . . . . . Route ------- -11/Junkyard -10/Materials (discovered 5 exits: *Mat x3 / [*Min x2]) -10/Mines -9/Materials (discovered 2 exits: [*Mat] / [*Min]) -9/Mines (discovered 3 exits: [*Mat] / *Exi / [*Zio]) -9/Exiles -8/Mines -8/Materials History --------- Turn | Location | Event 22 | -11/Junkyard | Discovered new exit (range 16) 86 | -11/Junkyard | Entered Materials 314 | -10/Materials | Build established: Mutant 358 | -10/Materials | Discovered new exit (range 16) 459 | -10/Materials | Discovered new exit (range 11) 636 | -10/Materials | Discovered new exit (range 15) 953 | -10/Materials | Discovered new exit (range 9) 1113 | -10/Materials | Discovered new exit (range 14) 1202 | -10/Materials | Entered Mines 1207 | -10/Mines | Met a Derelict bent on vengeance 1235 | -10/Mines | Learned location of Storage (-7) 1265 | -10/Mines | Received a Rocket Launcher from a helpful Derelict 1384 | -10/Mines | Discovered new exit (range 15) 1517 | -10/Mines | Entered Materials 1517 | -9/Materials | Evolved 2 slots: Weapon x2 1574 | -9/Materials | Repaired Assault Rifle 1602 | -9/Materials | Repaired Lgt. Treads 1629 | -9/Materials | Repaired Lgt. Treads 1657 | -9/Materials | Repaired Lgt. Armor Plating 1821 | -9/Materials | Build established: Tank 1942 | -9/Materials | Discovered new exit (range 10) 3071 | -9/Materials | Discovered new exit (range 16) 3194 | -9/Materials | Entered Mines 3327 | -9/Mines | Discovered new exit (range 6) 3423 | -9/Mines | Learned 2 Materials zone layouts 3609 | -9/Mines | Deemed a non-threat by the Exiles lab entrance 3609 | -9/Mines | Discovered new exit (range 5) 3682 | -9/Mines | A Derelict revealed a hidden shortcut to a safe place 3945 | -9/Mines | Entered Exiles 3945 | -9/Exiles | Found Exiles lab abandoned 4265 | -9/Exiles | Build established: Mutant 4851 | -9/Exiles | Discovered new exit (range 12) 4870 | -9/Exiles | Entered Mines 4942 | -8/Mines | Discovered new exit (range 8) 4983 | -8/Mines | Entered Materials 4983 | -8/Materials | Evolved 2 slots: Propulsion x1, Utility x1 5426 | -8/Materials | Build established: Scavenger-Gunner 5547 | -8/Materials | Garrison activated, responded to threat 5620 | -8/Materials | Core integrity fell below 50% 5644 | -8/Materials | Core integrity fell below 20% 5647 | -8/Materials | Destroyed by G-47 Trooper with Particle Gun Last Messages --------------- 05610_ Acquired Shotgun. 05617_ Lgt. Armor Plating destroyed. 05617_ Critical hit (Burn: +37). 05618_ Shotgun destroyed. 05619_ Critical hit (Burn: +37). 05624_ Adv. Treads destroyed. 05628_ Acquired Imp. Hover Unit. 05634_ Critical hit (Burn: +37). 05635_ ALERT: Suspicious intruders detected, dispatching Cutter reinforcements to area. 05636_ Imp. Hover Unit destroyed. 05639_ Acquired Imp. Hover Unit. 05641_ Slammed into G-47 Trooper. 05643_ Imp. Hover Unit destroyed. 05644_ Slammed into G-47 Trooper. 05645_ Imp. Hover Unit destroyed. 05645_ Slammed into G-47 Trooper. 05645_ Imp. Hover Unit destroyed. 05647_ Slammed into G-47 Trooper. 05647_ Critical hit (Burn: +37). Map ----- +----------------------------------------------------+ | #???????????? | | +######/#########" #???????????? | | ????# ????????#! #???????????? | | ????# |????????#%==#???????????? | | ???# ????????#! #???????????? | | [[[???#/ ????????# #???????????? | | [[[ ??# ???????# #???????????? | | [[[ ??# ???????# #???????????? | | #####?? ???????# ###########?? | | ???????= ???????# # =%#?? | | ??????? ??????# # %##?? | | ???????###+??????#% # %#??? | | ?????????????????# # #??? | | ?????????????????# + #??? | | ?????????????????# # #??? | | ?????????????????### # #??? | | ???????????????????# # #??? | | ???????????????????# # #??? | | ???????????????????# ###########?? | | ???????????????????# #?# #?? | | ???????????????????#%#?#= """ #?? | | ????????????######?#%#?#= """ #?? | | ???????#????# ###%#?#ggg""" #?? | | ???????# ???#! ##* ###g g #?? | | ???????# ??# #!u* %##/######?? | | ???????# ?# # g@ #????? | | ??????## ## + T % #????? | | ?##+### % # %% # #????? | | # #u #### #????? | | %%H #![[ ;;#+###??? #????? | | *% #%% #! #?? #????? | | ?###### [ ###### #?? ????? | | ?????###"####????# +??? ????? | | ???????#?????????# #??? #???? | | ?????????????????# #???##???? | | ?????????????????# #????????? | | ?????????????????########????????? | | ?????????????????????????????????? | | ?????????????????????????????????? | | ?????????????????????????????????? | | ?????????????????????????????????? | | ?????????????????????????????????? | | ?????????????????????????????????? | | ?????????????????????????????????? | | ?????????????????????????????????? | | ?????????????????????????????????? | | ?????????????????????????????????? | | ?????????????????????????????????? | | ?????????????????????????????????? | | ?????????????????????????????????? | +----------------------------------------------------+ Best States ------------- Heat Dissipation 31 Energy Generation 12 Energy Capacity 265 Matter Stores 300 Matter Capacity 300 Sight Range 16 Terrain Scan Density 10 Armor Coverage 225 Evasion (%) 40 Targeting Accuracy 6 Recoil Reduction 3 Item Schematics ----------------- None Robot Schematics ------------------ None Fabricated ------------ Nothing Alien Tech Used ----------------- None Achievements -------------- None Challenges ------------ None Game ------ Seed UltimateDiametricArmor Manual? 0 Play Time 00:34:26 Cumulative 19.5 hours Start 2023.04.05 @ 23:34:56 End 2023.04.06 @ 00:09:10 Sessions 1 Manual Loads 0 Difficulty Rogue Special Mode None Game No. 19 Rogue 19 Adventurer 0 Explorer 0 Win Type - Total 0 Types 0/0/0/0/0/0/0/0/0 Lore% 17 Gallery% 26 Achievement% 25 Wizard Run 0 Options --------- ASCII 0 Keyboard 0 Movement Mouse Keybinds 0 Fullscreen 1 Font 18/SmallcapsGlow Map View 76x50 Tactical HUD 1 Map Filters NONE Filters NONE Steam 1 RUN: c2b9592d-ce09-43ae-b4fd-9c49ec4110c6